fUST/lending_fUST_20251020
["ID","MTS","AMOUNT","RATE_DAILY","PERIOD"]
[391844041,1760908240499,-2267.22382,0.0003034,2]
[391844042,1760908240575,-404.0,0.00030353,2]
[391844043,1760908240584,-584.41,0.00030366,30]
[391844044,1760908240593,-375.0,0.00030366,2]
[391844045,1760908240603,-500.0,0.0003041,120]
[391844046,1760908240612,-847.0,0.00030415,2]
[391844047,1760908240621,-767.7842514,0.00030445,2]
[391844048,1760908240631,-280.03725112,0.00030445,2]
[391844049,1760908240640,-2048.22,0.000305,2]
[391844050,1760908240649,-159.515384,0.000305,10]
[391844051,1760908240658,-681.82,0.00030515,2]
[391844052,1760908240671,-500.0,0.00030547,120]
[391844053,1760908240682,-404.0,0.00030591,7]
[391844054,1760908240693,-500.0,0.00030684,120]
[391844055,1760908240703,-1044.79727212,0.00030761,2]
[391844056,1760908240713,-457.0,0.00030781,7]
[391844057,1760908240724,-500.0,0.00030821,120]
[391844058,1760908240734,-159.515384,0.00030896,10]
[391844059,1760908240743,-500.0,0.00030958,120]
[391844060,1760908240753,-397.5,0.00030966,2]
[391844061,1760908240762,-796.19226871,0.00030993,2]
[391844062,1760908240771,-290.39862941,0.00030993,2]
[391844063,1760908240781,-2404.35134697,0.00031,120]
[391844064,1760908240790,-171.65406042,0.00031,120]
[391844065,1760908240799,-697.89338925,0.00031,120]
[391844066,1760908240813,-160.13210646,0.00031,120]
[391844067,1760908240823,-280.5949361,0.00031,120]
[391844068,1760908240833,-279.12538977,0.00031,120]
[391844069,1760908240843,-1623.60854251,0.00031,120]
[391844070,1760908240852,-205.88724234,0.00031,120]
[391844071,1760908240861,-171.72962963,0.00031,120]
[391844072,1760908240871,-168.22497343,0.00031,120]
[391844073,1760908240880,-161.17462155,0.00031,120]
[391844074,1760908240890,-1237.30891827,0.00031,120]
[391844075,1760908240899,-402.86590842,0.00031,120]
[391844076,1760908240910,-417.15472785,0.00031,120]
[391844077,1760908240920,-823.0,0.00031037,2]
[391844078,1760908240930,-307.7706981,0.00031067,2]
[391844079,1760908240939,-500.0,0.00031095,120]
[391844080,1760908240949,-500.0,0.00031232,120]
[391844081,1760908240958,-510.0,0.00031267,2]
[391844082,1760908240968,-159.515384,0.00031292,10]
[391844083,1760908240982,-569.45826478,0.00031369,120]
[391844084,1760908240991,-457.0,0.00031433,2]
[391844085,1760908241000,-847.0,0.0003146,2]
[391844086,1760908241010,-510.0,0.0003146,2]
[391844087,1760908241020,-751.0,0.00031464,3]
[391844088,1760908241039,-671.92,0.00031496,15]
[391844089,1760908241048,-510.0,0.00031507,2]
[391844090,1760908241060,-505.886014,0.0003153,2]
[391844091,1760908241070,-825.65138265,0.00031541,2]
[391844092,1760908241079,-301.1433787,0.00031541,2]
[391844093,1760908241088,-510.0,0.00031544,7]
[391844094,1760908241098,-420.0,0.00031566,2]
[391844095,1760908241107,-671.92,0.00031596,15]
[391844096,1760908241116,-730.52,0.00031631,30]
[391844097,1760908241126,-159.515384,0.00031645,2]
[391844098,1760908241135,-157.068444,0.00031645,2]
[391844099,1760908241145,-159.515384,0.00031688,10]
[391844100,1760908241154,-157.068444,0.00031688,10]
[391844101,1760908241164,-510.0,0.00031693,2]
[391844102,1760908241173,-671.92,0.00031696,15]
[391844103,1760908241183,-7816.83,0.000317,2]
[391844104,1760908241192,-671.92,0.00031796,15]
[391844105,1760908241201,-671.92,0.00031896,15]
[391844106,1760908241211,-2048.22,0.000319,2]
[391844107,1760908241220,-2404.35134697,0.000319,120]
[391844108,1760908241230,-171.65406042,0.000319,120]
[391844109,1760908241240,-697.89338925,0.000319,120]
[391844110,1760908241250,-160.13210646,0.000319,120]
[391844111,1760908241259,-280.5949361,0.000319,120]
[391844112,1760908241268,-205.88724234,0.000319,120]
[391844113,1760908241277,-1623.60854251,0.000319,120]
[391844114,1760908241287,-279.12538977,0.000319,120]
[391844115,1760908241297,-171.72962963,0.000319,120]
[391844116,1760908241306,-168.22497343,0.000319,120]
[391844117,1760908241315,-1237.30891827,0.000319,120]
[391844118,1760908241324,-1022.72,0.00031902,2]
[391844119,1760908241333,-175.0,0.00031904,7]
[391844120,1760908241342,-152.0,0.00031904,7]
[391844121,1760908241351,-152.0,0.00031904,7]
[391844122,1760908241361,-163.0,0.00031904,7]
[391844123,1760908241371,-205.80011743,0.00031904,7]
[391844124,1760908241381,-152.0,0.00031904,7]
[391844125,1760908241390,-163.49587639,0.00031904,7]
[391844126,1760908241400,-330.0,0.00031904,7]
[391844127,1760908241409,-337.18682453,0.00031904,7]
[391844128,1760908241418,-152.0,0.00031904,7]
[391844129,1760908241428,-152.0,0.00031904,7]
[391844130,1760908241438,-152.0,0.00031904,7]
[391844131,1760908241447,-152.0,0.00031904,7]
[391844132,1760908241457,-152.0,0.00031904,7]
[391844133,1760908241467,-152.0,0.00031904,7]
[391844134,1760908241476,-152.0,0.00031904,7]
[391844135,1760908241486,-152.0,0.00031904,7]
[391844136,1760908241495,-152.0,0.00031904,7]
[391844137,1760908241505,-152.0,0.00031904,7]
[391844138,1760908241514,-152.0,0.00031904,7]
[391844139,1760908241524,-272.60998769,0.00031904,7]
[391844140,1760908241534,-172.0,0.00031904,7]
[391844141,1760908241544,-166.0,0.00031904,7]
[391844142,1760908241554,-165.67907628,0.00031904,7]
[391844143,1760908241563,-175.26786332,0.00031904,7]
[391844144,1760908241573,-330.0,0.00031904,7]
[391844145,1760908241583,-330.0,0.00031904,7]
[391844146,1760908241593,-330.0,0.00031904,7]
[391844147,1760908241603,-330.0,0.00031904,7]
[391844148,1760908241612,-330.0,0.00031904,7]
[391844149,1760908241622,-330.0,0.00031904,7]
[391844150,1760908241632,-330.0,0.00031904,7]
[391844151,1760908241642,-330.0,0.00031904,7]
[391844152,1760908241651,-330.0,0.00031904,7]
[391844153,1760908241660,-330.0,0.00031904,7]
[391844154,1760908241670,-330.0,0.00031904,7]
[391844155,1760908241680,-330.0,0.00031904,7]
[391844156,1760908241690,-330.0,0.00031904,7]
[391844157,1760908241700,-330.0,0.00031904,7]
[391844158,1760908241709,-330.0,0.00031904,7]
[391844159,1760908241719,-330.0,0.00031904,7]
[391844160,1760908241793,-330.0,0.00031904,7]
[391844161,1760908241803,-330.0,0.00031904,7]
[391844162,1760908241812,-330.0,0.00031904,7]
[391844163,1760908241821,-330.0,0.00031904,7]
[391844164,1760908241831,-330.0,0.00031904,7]
[391844165,1760908241841,-330.0,0.00031904,7]
[391844166,1760908241851,-330.0,0.00031904,7]
[391844167,1760908241860,-330.0,0.00031904,7]
[391844168,1760908241869,-330.0,0.00031904,7]
[391844169,1760908241878,-330.0,0.00031904,7]
[391844170,1760908241887,-330.0,0.00031904,7]
[391844171,1760908241896,-330.0,0.00031904,7]
[391844172,1760908241905,-330.0,0.00031904,7]
[391844173,1760908241915,-330.0,0.00031904,7]
[391844174,1760908241923,-330.0,0.00031904,7]
[391844175,1760908241933,-330.0,0.00031904,7]
[391844176,1760908241942,-330.0,0.00031904,7]
[391844177,1760908241951,-330.0,0.00031904,7]
[391844178,1760908241960,-671.92,0.00031996,15]
[391844179,1760908241969,-510.0,0.00032042,2]
[391844180,1760908241982,-159.515384,0.00032084,10]
[391844181,1760908241991,-157.068444,0.00032084,10]
[391844182,1760908242000,-671.92,0.00032096,15]
[391844183,1760908242009,-690.43206773,0.00032096,3]
[391844184,1760908242018,-442.5,0.00032166,2]
[391844185,1760908242027,-671.92,0.00032196,15]
[391844186,1760908242036,-671.92,0.00032296,15]
[391844187,1760908242045,-51056.05,0.000323,7]
[391844188,1760908242054,-510.0,0.0003236,7]
[391844189,1760908242064,-671.92,0.00032396,15]
[391844190,1760908242073,-4202.0,0.0003245,2]
[391844191,1760908242083,-982.0,0.0003245,2]
[391844192,1760908242092,-631.0,0.0003245,2]
[391844193,1760908242101,-2163.0,0.0003245,2]
[391844194,1760908242110,-671.92,0.00032496,15]
[391844195,1760908242119,-671.92,0.00032596,15]
[391844196,1760908242128,-168.0,0.00032672,7]
[391844197,1760908242138,-671.92,0.00032696,15]
[391844198,1760908242147,-5369.0,0.00032764,2]
[391844199,1760908242156,-465.0,0.00032766,2]
[391844200,1760908242166,-200.0,0.00032788,120]
[391844201,1760908242175,-168.0,0.00032795,2]
[391844202,1760908242184,-671.92,0.00032796,15]
[391844203,1760908242193,-500.0,0.00032805,7]
[391844204,1760908242203,-168.0,0.00032856,2]
[391844205,1760908242213,-151.0,0.00032877,30]
[391844206,1760908242222,-151.0,0.00032877,30]
[391844207,1760908242231,-151.0,0.00032877,30]
[391844208,1760908242240,-151.0,0.00032877,30]
[391844209,1760908242249,-151.0,0.00032877,30]
[391844210,1760908242258,-151.0,0.00032877,30]
[391844211,1760908242267,-292.548852,0.00032877,30]
[391844212,1760908242276,-178.8,0.0003288,30]
[391844213,1760908242286,-170.37,0.0003288,30]
[391844214,1760908242295,-273.46,0.0003288,30]
[391844215,1760908242304,-159.51877071,0.0003288,30]
[391844216,1760908242314,-876.62,0.00032896,30]
[391844217,1760908242324,-671.92,0.00032896,60]
[391844218,1760908242333,-2404.35134697,0.000329,120]
[391844219,1760908242343,-697.89338925,0.000329,120]
[391844220,1760908242352,-160.13210646,0.000329,120]
[391844221,1760908242361,-280.5949361,0.000329,120]
[391844222,1760908242371,-1623.60854251,0.000329,120]
[391844223,1760908242380,-279.12538977,0.000329,120]
[391844224,1760908242389,-1237.30891827,0.000329,120]
[391844225,1760908242398,-168.0,0.0003292,2]
[391844226,1760908242407,-1044.79727212,0.00032924,2]
[391844227,1760908242416,-5369.0,0.00032965,7]
[391844228,1760908242425,-671.92,0.00032996,60]
[391844229,1760908242436,-168.0,0.00033029,2]
[391844230,1760908242446,-168.0,0.00033054,7]
[391844231,1760908242455,-671.92,0.00033096,60]
[391844232,1760908242465,-7816.83,0.000331,14]
[391844233,1760908242475,-694.822092,0.00033165,2]
[391844234,1760908242484,-671.92,0.00033196,60]
[391844235,1760908242493,-178.06395607,0.000332,117]
[391844236,1760908242503,-178.06395607,0.000332,117]
[391844237,1760908242512,-178.06395607,0.000332,117]
[391844238,1760908242523,-168.0,0.00033228,2]
[391844239,1760908242533,-1363.63,0.00033289,2]
[391844240,1760908242543,-671.92,0.00033296,60]
[391844241,1760908242552,-2048.22,0.000333,2]
[391844242,1760908242563,-200.0,0.00033304,120]
[391844243,1760908242575,-200.0,0.00033323,120]
[391844244,1760908242585,-487.5,0.00033366,2]
[391844245,1760908242596,-671.92,0.00033396,60]
[391844246,1760908242606,-200.0,0.000334,120]
[391844247,1760908242616,-154.761601,0.00033457,60]
[391844248,1760908242625,-500.0,0.00033493,7]
[391844249,1760908242635,-671.92,0.00033496,60]
[391844250,1760908242644,-671.92,0.00033596,60]
[391844251,1760908242653,-154.761601,0.00033614,60]
[391844252,1760908242663,-432.0,0.00033646,2]
[391844253,1760908242673,-671.92,0.00033696,60]
[391844254,1760908242683,-500.0,0.00033702,7]
[391844255,1760908242693,-200.0,0.00033712,120]
[391844256,1760908242703,-671.92,0.00033796,60]
[391844257,1760908242712,-502.61374463,0.00033833,7]
[391844258,1760908242721,-250.0,0.00033892,2]
[391844259,1760908242730,-250.0,0.00033892,2]
[391844260,1760908242740,-213.536,0.00033892,2]
[391844261,1760908242749,-671.92,0.00033896,60]
[391844262,1760908242758,-2404.35134697,0.000339,120]
[391844263,1760908242767,-697.89338925,0.000339,120]
[391844264,1760908242776,-280.5949361,0.000339,120]
[391844265,1760908242785,-1623.60854251,0.000339,120]
[391844266,1760908242795,-279.12538977,0.000339,120]
[391844268,1760908242804,-1237.30891827,0.000339,120]
[391844270,1760908242814,-3000.0,0.000339,17]
[391844278,1760908242885,-3000.0,0.0003391,17]
[391844279,1760908242894,-200.0,0.0003392,120]
[391844280,1760908242904,-3000.0,0.0003392,17]
[391844281,1760908242914,-3000.0,0.0003393,17]
[391844282,1760908242925,-3000.0,0.0003394,17]
[391844283,1760908242934,-3000.0,0.0003395,18]
[391844284,1760908242943,-229.962,0.00033951,2]
[391844285,1760908242952,-287.487,0.00033951,2]
[391844286,1760908242962,-187.147,0.00033951,2]
[391844287,1760908242971,-264.006,0.00033951,2]
[391844288,1760908242983,-294.588,0.00033951,2]
[391844289,1760908242993,-211.935,0.00033951,2]
[391844290,1760908243002,-3000.0,0.0003396,18]
[391844291,1760908243011,-397.48708251,0.00033966,2]
[391844293,1760908243021,-3000.0,0.0003397,18]
[391844295,1760908243031,-3000.0,0.0003398,18]
[391844297,1760908243040,-3000.0,0.0003399,18]
[391844299,1760908243050,-671.92,0.00033996,60]
[391844301,1760908243060,-5146.77493648,0.00034,7]
[391844303,1760908243069,-3000.0,0.00034,18]
[391844305,1760908243078,-202.78095131,0.00034,2]
[391844307,1760908243087,-3000.0,0.0003401,18]
[391844309,1760908243096,-3000.0,0.0003402,18]
[391844311,1760908243106,-3790.346504,0.0003403,18]
[391844313,1760908243115,-671.92,0.00034096,60]
[391844315,1760908243125,-307.7706981,0.00034097,2]
[391844317,1760908243134,-220.01086159,0.0003411,5]
[391844319,1760908243143,-1022.72,0.00034161,30]
[391844321,1760908243153,-671.92,0.00034196,60]
[391844323,1760908243162,-200.0,0.00034219,120]
[391844325,1760908243171,-2094.7,0.00034243,30]
[391844327,1760908243180,-150.0,0.00034243,2]
[391844329,1760908243189,-517294.60010818,0.00034243,20]
[391844332,1760908243205,-6106.76245808,0.00034243,20]
[391844334,1760908243216,-50816.89972207,0.00034243,20]
[391844623,1760908390781,417.15472785,0.00024142,2]
[391844625,1760908441645,417.15472785,0.00024,3]
[391844626,1760908451125,417.15472785,0.00024,3]
[391844627,1760908476257,294.56,0.00021357,2]
[391844628,1760908476688,589.12,0.00022374,2]
[391844629,1760908477094,883.67,0.00023391,2]
[391844631,1760908627383,150.0,0.00024141,2]
[391844632,1760908636464,313.21,0.00021452,2]
[391844633,1760908637410,626.43,0.00022473,2]
[391844634,1760908637841,939.64,0.00023495,2]
[391844635,1760908642606,5000.0,0.00024142,2]
[391844636,1760908650444,199.23773281,0.00024142,2]
[391844637,1760908656429,219.6880563,0.0002327,2]
[391844638,1760908658505,4581.08421089,0.00024142,2]
[391844639,1760908658534,418.91578911,0.00024142,2]
[391844640,1760908666956,5000.0,0.00024142,2]
[391844641,1760908682280,4581.09421089,0.00024142,2]
[391844642,1760908682303,418.90578911,0.00024142,2]
[391844643,1760908690066,5000.0,0.00024142,2]
[391844644,1760908701263,498.58114986,0.000241,2]
[391844645,1760908710782,300.0,0.000233,2]
[391844646,1760908715293,333.25,0.00021749,2]
[391844647,1760908715844,666.49,0.00022785,2]
[391844648,1760908716331,999.74,0.00023821,2]
[391844649,1760908723113,300.0,0.000233,2]
[391844650,1760908734686,1483.04306103,0.00024142,2]
[391844651,1760908734707,1261.3134584,0.00024142,2]
[391844652,1760908736237,300.0,0.000233,2]
[391844653,1760908749901,1318.85510018,0.00024142,2]
[391844654,1760908757834,1253.04964781,0.00024142,2]
[391844655,1760908772790,3681.14489982,0.00024142,2]
[391844656,1760908794189,505.89,0.00022022,2]
[391844657,1760908794596,1011.78,0.0002307,2]
[391844658,1760908795006,667.97689379,0.00024119,2]
[391844659,1760908795035,849.69310621,0.00024119,2]
[391844660,1760908809385,4474.53367467,0.00024142,2]
[391844661,1760908817221,4675.78321912,0.00024142,2]
[391844662,1760908817244,324.21678088,0.00024142,2]
[391844663,1760908828252,1127.65936507,0.00023236,2]
[391844665,1760909033797,514.17,0.00021444,2]
[391844666,1760909034237,1028.34,0.00022466,2]
[391844667,1760909034649,1542.51,0.00023487,2]
[391844668,1760909048615,1577.33881932,0.00024142,2]
[391844669,1760909056443,3024.72957844,0.00024142,2]
[391844670,1760909078835,861.04545629,0.00024142,2]
[391844671,1760909078858,1114.22496527,0.00024142,2]
[391844672,1760909101776,537.84,0.00024142,2]
[391844673,1760909102596,417.15472785,0.00024142,2]
[391844674,1760909112797,480.8,0.00021369,2]
[391844675,1760909113202,961.59,0.00022386,2]
[391844676,1760909113711,1442.39,0.00023404,2]
[391844677,1760909125229,246.16,0.00024142,2]
[391844680,1760909192226,455.99,0.0002137,2]
[391844681,1760909192627,911.98,0.00022388,2]
[391844682,1760909193046,1367.97,0.00023406,2]
[391844683,1760909201258,1000.0,0.00023199,30]
[391844684,1760909222181,350.197456,0.000241,2]
[391844685,1760909267496,253.56419708,0.000209,2]
[391844686,1760909267737,460.1486538,0.00018,2]
[391844687,1760909267761,10000.01,0.00018,2]
[391844688,1760909267784,10000.01,0.00018,2]
[391844689,1760909267807,10000.01,0.00018,2]
[391844690,1760909267828,10000.01,0.00018,2]
[391844691,1760909267936,10000.01,0.00018,2]
[391844692,1760909267959,10000.01,0.00018,2]
[391844694,1760909267985,10000.01,0.00018,2]
[391844695,1760909268008,10000.01,0.00018,2]
[391844696,1760909268032,10000.01,0.00018,2]
[391844697,1760909268055,818.6183626,0.00018,2]
[391844698,1760909268076,3036.19356829,0.00018,2]
[391844699,1760909273227,421.17,0.00021369,2]
[391844700,1760909273625,842.34,0.00022387,2]
[391844701,1760909274064,1263.51,0.00023404,2]
[391844702,1760909282367,725.98590277,0.000241,2]
[391844703,1760909289727,476.08045659,0.00019205,5]
[391844705,1760909301226,2113.79951061,0.000176,2]
[391844706,1760909305462,287.86930457,0.0002,2]
[391844707,1760909305938,3869.25482546,0.00024142,2]
[391844708,1760909305963,1130.74517454,0.00024142,2]
[391844709,1760909308158,8869.26482546,0.0002,2]
[391844710,1760909308180,5672.63415554,0.0002,2]
[391844711,1760909310046,4327.37584446,0.00017,2]
[391844712,1760909310068,10000.01,0.00017,2]
[391844713,1760909310090,10000.01,0.00017,2]
[391844714,1760909310111,536.01873629,0.00017,2]
[391844715,1760909312518,9421.11461795,0.00015,2]
[391844716,1760909313431,42.87664576,0.00024,2]
[391844717,1760909313456,118.7418417,0.00024,2]
[391844718,1760909314774,-150.0,0.00024163,2]
[391844719,1760909314796,-120.69789889,0.00024197,2]
[391844720,1760909317580,543.4990165,0.0002,2]
[391844721,1760909318151,-179.30210111,0.00024197,2]
[391844722,1760909318173,-19.64582424,0.00024197,2]
[391844723,1760909319808,205.04977276,0.00021,2]
[391844724,1760909319934,1021.46808969,0.000225,2]
[391844725,1760909320132,5327.67593757,0.00023,2]
[391844726,1760909321489,-224.36444537,0.00024197,2]
[391844727,1760909321605,2783.57534178,0.00024142,2]
[391844728,1760909321627,2216.42465822,0.00024142,2]
[391844729,1760909323577,294.16750149,0.00024,2]
[391844730,1760909324668,-55.98973039,0.00024197,2]
[391844731,1760909324689,-108.25724667,0.00024197,2]
[391844732,1760909329405,5000.0,0.00024142,2]
[391844733,1760909337117,196.0,0.00018,2]
[391844734,1760909337306,196.0,0.00018001,2]
[391844735,1760909337534,196.0,0.00018002,2]
[391844736,1760909338055,196.0,0.00018003,2]
[391844737,1760909338279,196.0,0.00018004,2]
[391844738,1760909338489,196.0,0.00018005,2]
[391844739,1760909338686,196.0,0.00018006,2]
[391844740,1760909338870,196.0,0.00018007,2]
[391844741,1760909339129,196.0,0.00018008,2]
[391844742,1760909339279,196.0,0.00018009,2]
[391844743,1760909339476,196.0,0.0001801,2]
[391844744,1760909339679,196.0,0.00018011,2]
[391844745,1760909339863,137.41784029,0.00018012,2]
[391844746,1760909339886,58.58215971,0.00018012,2]
[391844747,1760909340145,196.0,0.00018013,2]
[391844748,1760909340407,196.0,0.00018014,2]
[391844749,1760909340631,196.0,0.00018015,2]
[391844750,1760909340818,196.0,0.00018016,2]
[391844751,1760909341027,196.0,0.00018017,2]
[391844752,1760909341257,196.0,0.00018018,2]
[391844753,1760909341806,196.0,0.00018019,2]
[391844754,1760909342035,196.0,0.0001802,2]
[391844755,1760909342237,196.0,0.00018021,2]
[391844756,1760909342428,196.0,0.00018022,2]
[391844757,1760909343006,196.0,0.00018023,2]
[391844758,1760909343039,196.0,0.00018024,2]
[391844759,1760909343073,196.0,0.00018025,2]
[391844760,1760909343207,196.0,0.00018026,2]
[391844761,1760909343435,196.0,0.00018027,2]
[391844762,1760909343584,196.0,0.00018028,2]
[391844763,1760909343804,196.0,0.00018029,2]
[391844764,1760909344000,196.0,0.0001803,2]
[391844765,1760909344188,196.0,0.00018031,2]
[391844766,1760909344415,196.0,0.00018032,2]
[391844767,1760909344565,196.0,0.00018033,2]
[391844768,1760909344756,196.0,0.00018034,2]
[391844769,1760909344954,196.0,0.00018035,2]
[391844770,1760909345154,196.0,0.00018036,2]
[391844771,1760909345344,196.0,0.00018037,2]
[391844772,1760909345538,196.0,0.00018038,2]
[391844773,1760909345734,196.0,0.00018039,2]
[391844774,1760909345927,196.0,0.0001804,2]
[391844775,1760909346270,196.0,0.00018041,2]
[391844776,1760909346462,196.0,0.00018042,2]
[391844777,1760909346650,196.0,0.00018043,2]
[391844778,1760909346834,196.0,0.00018044,2]
[391844779,1760909347027,196.0,0.00018045,2]
[391844780,1760909347228,196.0,0.00018046,2]
[391844781,1760909347450,196.0,0.00018047,2]
[391844782,1760909347641,196.0,0.00018048,2]
[391844783,1760909347841,196.0,0.00018049,2]
[391844784,1760909348034,196.0,0.00018051,2]
[391844785,1760909348228,196.0,0.00018052,2]
[391844786,1760909348427,196.0,0.00018053,2]
[391844787,1760909348619,196.0,0.00018054,2]
[391844788,1760909348814,196.0,0.00018055,2]
[391844789,1760909348999,196.0,0.00018056,2]
[391844790,1760909349195,196.0,0.00018057,2]
[391844791,1760909349556,196.0,0.00018058,2]
[391844792,1760909349745,196.0,0.00018059,2]
[391844793,1760909349939,196.0,0.0001806,2]
[391844794,1760909350520,196.0,0.00018061,2]
[391844795,1760909350762,196.0,0.00018062,2]
[391844796,1760909350951,196.0,0.00018063,2]
[391844797,1760909351155,141.42784029,0.00018064,2]
[391844798,1760909351179,54.57215971,0.00018064,2]
[391844799,1760909351337,196.0,0.00018065,2]
[391844800,1760909351529,196.0,0.00018066,2]
[391844801,1760909351711,196.0,0.00018067,2]
[391844802,1760909351739,5000.0,0.00024142,2]
[391844803,1760909351889,196.0,0.00018068,2]
[391844804,1760909352064,196.0,0.00018069,2]
[391844805,1760909352567,196.0,0.0001807,2]
[391844806,1760909352782,196.0,0.00018071,2]
[391844807,1760909353002,196.0,0.00018072,2]
[391844808,1760909353305,196.0,0.00018073,2]
[391844809,1760909353356,196.0,0.00018074,2]
[391844810,1760909353531,196.0,0.00018075,2]
[391844811,1760909353746,196.0,0.00018076,2]
[391844812,1760909353999,196.0,0.00018077,2]
[391844813,1760909354207,196.0,0.00018078,2]
[391844814,1760909354383,196.0,0.00018079,2]
[391844815,1760909354560,196.0,0.0001808,2]
[391844816,1760909354783,196.0,0.00018081,2]
[391844817,1760909354956,196.0,0.00018082,2]
[391844818,1760909355179,196.0,0.00018083,2]
[391844819,1760909355349,196.0,0.00018084,2]
[391844820,1760909355527,196.0,0.00018085,2]
[391844821,1760909355752,196.0,0.00018086,2]
[391844822,1760909355977,196.0,0.00018087,2]
[391844823,1760909356189,196.0,0.00018088,2]
[391844824,1760909356400,196.0,0.00018089,2]
[391844825,1760909356870,45.43784029,0.0001809,2]
[391844826,1760909356893,150.56215971,0.0001809,2]
[391844827,1760909357064,196.0,0.00018091,2]
[391844828,1760909357282,196.0,0.00018092,2]
[391844829,1760909357476,196.0,0.00018093,2]
[391844830,1760909357654,196.0,0.00018094,2]
[391844831,1760909357838,196.0,0.00018095,2]
[391844832,1760909358023,196.0,0.00018096,2]
[391844833,1760909358228,196.0,0.00018097,2]
[391844834,1760909358411,196.0,0.00018098,2]
[391844835,1760909358586,196.0,0.00018099,2]
[391844836,1760909358767,8085.44784029,0.000181,2]
[391844837,1760909358790,10000.01,0.000181,2]
[391844838,1760909358814,8574.09838478,0.000181,2]
[391844839,1760909359541,1425.91161522,0.00024142,2]
[391844840,1760909359562,610.58669138,0.00024142,2]
[391844843,1760909371601,2172.9430953,0.00023236,2]
[391844844,1760909375233,5000.0,0.00024142,2]
[391844845,1760909381404,270.68975983,0.00024098,2]
[391844846,1760909397561,1945.79045349,0.00024142,2]
[391844847,1760909397583,3054.20954651,0.00024142,2]
[391844878,1760909432497,-661.99406673,0.00024197,2]
[391844880,1760909432509,-489.42323177,0.00024198,2]
[391844919,1760909433939,300.0,0.000232,2]
[391844926,1760909438411,-463.57676823,0.00024198,2]
[391844927,1760909438421,-500.0,0.00024199,2]
[391844928,1760909438431,-500.0,0.00024199,2]
[391844929,1760909438440,-300.0,0.00024199,2]
[391844930,1760909438449,-187.0,0.00024199,2]
[391844931,1760909438459,-1200.0,0.00024199,2]
[391844932,1760909438468,-500.0,0.00024199,2]
[391844933,1760909438478,-612.20275038,0.00024199,2]
[391844934,1760909438487,-500.0,0.00024199,2]
[391844935,1760909438497,-265.26367732,0.00024199,2]
[391844936,1760909438507,-500.0,0.00024199,2]
[391844937,1760909438516,-632.50647596,0.00024199,2]
[391844938,1760909438526,-500.0,0.00024199,2]
[391844940,1760909438540,-500.0,0.00024199,2]
[391844941,1760909438550,-500.0,0.00024199,2]
[391844942,1760909438558,-188.60643017,0.00024199,2]
[391844943,1760909438571,-311.39356983,0.00024199,2]
[391844944,1760909438580,-178.24866075,0.00024199,2]